fUST/lending_fUST_20250615
["ID","MTS","AMOUNT","RATE_DAILY","PERIOD"]
[365813918,1749933037188,-507.54581561,0.00021917,4]
[365813919,1749933037198,-460.0,0.00021917,4]
[365813920,1749933037207,-404.8708723,0.00021917,4]
[365813921,1749933037216,-460.0,0.00021917,4]
[365813922,1749933037226,-460.0,0.00021917,4]
[365813923,1749933037235,-460.0,0.00021917,4]
[365813924,1749933037244,-2768.92,0.00021917,4]
[365813925,1749933037253,-460.0,0.00021917,4]
[365813926,1749933037264,-400.0,0.00021917,4]
[365813927,1749933037273,-460.0,0.00021917,4]
[365813928,1749933037282,-460.0,0.00021917,4]
[365813929,1749933037291,-460.0,0.00021917,4]
[365813930,1749933037300,-210.42,0.00021917,4]
[365813931,1749933037309,-440.0,0.00021917,4]
[365813932,1749933037318,-460.0,0.00021917,4]
[365813933,1749933037328,-460.0,0.00021917,4]
[365813934,1749933037337,-460.0,0.00021917,4]
[365813935,1749933037347,-450.0,0.00021917,4]
[365813936,1749933037357,-400.0,0.00021917,4]
[365813937,1749933037367,-350.58208313,0.00021917,4]
[365813938,1749933037378,-421.38255661,0.00021917,4]
[365813939,1749933037388,-1078.94,0.00021917,4]
[365813940,1749933037398,-460.0,0.00021917,4]
[365813941,1749933037408,-460.0,0.00021917,4]
[365813942,1749933037417,-460.0,0.00021917,4]
[365813943,1749933037427,-460.0,0.00021917,4]
[365813944,1749933037436,-289.34705371,0.00021917,4]
[365813945,1749933037446,-460.0,0.00021917,4]
[365813946,1749933037456,-440.0,0.00021917,4]
[365813947,1749933037465,-460.0,0.00021917,4]
[365813948,1749933037475,-460.0,0.00021917,4]
[365813949,1749933037484,-460.0,0.00021917,4]
[365813950,1749933037493,-553.87,0.00021917,4]
[365813951,1749933037504,-460.0,0.00021917,4]
[365813952,1749933037514,-460.0,0.00021917,4]
[365813953,1749933037523,-460.0,0.00021917,4]
[365813954,1749933037532,-460.0,0.00021917,4]
[365813955,1749933037544,-729.35,0.00021917,4]
[365813956,1749933037553,-460.0,0.00021917,4]
[365813957,1749933037562,-460.0,0.00021917,4]
[365813958,1749933037572,-2881.89,0.00021917,4]
[365813959,1749933037581,-519.99,0.00021917,4]
[365813960,1749933037590,-460.0,0.00021917,4]
[365813961,1749933037599,-460.0,0.00021917,4]
[365813962,1749933037609,-460.0,0.00021917,4]
[365813963,1749933037618,-460.0,0.00021917,4]
[365813964,1749933037628,-460.0,0.00021917,4]
[365813965,1749933037638,-460.0,0.00021917,4]
[365813966,1749933037647,-460.0,0.00021917,4]
[365813967,1749933037656,-460.0,0.00021917,4]
[365813968,1749933037665,-430.0,0.00021917,4]
[365813969,1749933037675,-460.0,0.00021917,4]
[365813970,1749933037684,-405.14045033,0.00021917,4]
[365813971,1749933037694,-460.0,0.00021917,4]
[365813972,1749933037703,-681.4,0.00021917,4]
[365813973,1749933037712,-460.0,0.00021917,4]
[365813974,1749933037724,-460.0,0.00021917,4]
[365813975,1749933037734,-460.0,0.00021917,4]
[365813976,1749933037744,-460.0,0.00021917,4]
[365813977,1749933037753,-460.0,0.00021917,4]
[365813978,1749933037764,-460.0,0.00021917,4]
[365813979,1749933037773,-1270.48,0.00021917,4]
[365813980,1749933037783,-1055.51,0.00021917,4]
[365813981,1749933037792,-460.0,0.00021917,4]
[365813982,1749933037801,-460.0,0.00021917,4]
[365813983,1749933037815,-460.0,0.00021917,4]
[365813984,1749933037826,-1350.21,0.00021917,4]
[365813985,1749933037838,-362.78983242,0.00021917,4]
[365813986,1749933037847,-430.0,0.00021917,4]
[365813987,1749933037856,-460.0,0.00021917,4]
[365813988,1749933037865,-496.27,0.00021917,4]
[365813989,1749933037877,-460.0,0.00021917,4]
[365813990,1749933037887,-460.0,0.00021917,4]
[365813991,1749933037896,-460.0,0.00021917,4]
[365813992,1749933037906,-460.0,0.00021917,4]
[365813993,1749933037916,-460.0,0.00021917,4]
[365813994,1749933037930,-460.0,0.00021917,4]
[365813995,1749933037939,-460.0,0.00021917,4]
[365813996,1749933037950,-460.0,0.00021917,4]
[365813997,1749933037961,-430.0,0.00021917,4]
[365813998,1749933037971,-440.0,0.00021917,4]
[365813999,1749933037981,-3073.64,0.00021917,4]
[365814000,1749933037992,-460.0,0.00021917,4]
[365814001,1749933038001,-460.0,0.00021917,4]
[365814002,1749933038011,-460.0,0.00021917,4]
[365814003,1749933038022,-460.0,0.00021917,4]
[365814004,1749933038031,-540.12,0.00021917,2]
[365814005,1749933038040,-3018.1,0.00021917,4]
[365814007,1749933038050,-460.0,0.00021917,4]
[365814009,1749933038059,-430.0,0.00021917,4]
[365814012,1749933038068,-172.33142567,0.00021917,4]
[365814015,1749933038077,-460.0,0.00021917,4]
[365814017,1749933038086,-460.0,0.00021917,4]
[365814019,1749933038095,-460.0,0.00021917,4]
[365814021,1749933038105,-460.0,0.00021917,4]
[365814022,1749933038114,-440.0,0.00021917,4]
[365814024,1749933038123,-460.0,0.00021917,4]
[365814025,1749933038132,-3310.65,0.00021917,4]
[365814026,1749933038142,-460.0,0.00021917,4]
[365814027,1749933038151,-460.0,0.00021917,4]
[365814028,1749933038160,-460.0,0.00021917,4]
[365814029,1749933038170,-460.0,0.00021917,4]
[365814031,1749933038179,-460.0,0.00021917,4]
[365814032,1749933038188,-460.0,0.00021917,4]
[365814034,1749933038197,-167.43811431,0.00021917,4]
[365814036,1749933038207,-500.0,0.00021917,4]
[365814038,1749933038216,-460.0,0.00021917,4]
[365814040,1749933038226,-500.0,0.00021917,4]
[365814043,1749933038235,-460.0,0.00021917,4]
[365814045,1749933038245,-271.46909793,0.00021917,4]
[365814046,1749933038254,-643.5,0.00021917,4]
[365814047,1749933038264,-460.0,0.00021917,4]
[365814048,1749933038274,-460.0,0.00021917,4]
[365814049,1749933038284,-724.35,0.00021917,4]
[365814050,1749933038294,-1522.71,0.00021917,4]
[365814051,1749933038303,-434.13114532,0.00021917,4]
[365814052,1749933038313,-432.2598092,0.00021917,4]
[365814053,1749933038322,-460.0,0.00021917,4]
[365814054,1749933038332,-460.0,0.00021917,4]
[365814055,1749933038342,-460.0,0.00021917,4]
[365814057,1749933038351,-460.0,0.00021917,4]
[365814058,1749933038361,-460.0,0.00021917,4]
[365814059,1749933038371,-460.0,0.00021917,4]
[365814060,1749933038381,-430.0,0.00021917,4]
[365814061,1749933038390,-460.0,0.00021917,4]
[365814062,1749933038400,-432.31548768,0.00021917,4]
[365814063,1749933038410,-460.0,0.00021917,4]
[365814064,1749933038420,-460.0,0.00021917,4]
[365814065,1749933038430,-460.0,0.00021917,4]
[365814066,1749933038439,-460.0,0.00021917,4]
[365814067,1749933038449,-460.0,0.00021917,4]
[365814068,1749933038458,-460.0,0.00021917,4]
[365814069,1749933038468,-1129.33,0.00021917,4]
[365814070,1749933038478,-378.49451351,0.00021917,4]
[365814071,1749933038487,-431.42807953,0.00021917,4]
[365814072,1749933038497,-460.0,0.00021917,4]
[365814073,1749933038506,-460.0,0.00021917,4]
[365814074,1749933038516,-460.0,0.00021917,4]
[365814075,1749933038526,-1881.01,0.00021917,4]
[365814076,1749933038536,-460.0,0.00021917,4]
[365814077,1749933038546,-460.0,0.00021917,4]
[365814078,1749933038557,-189.31721537,0.00021917,4]
[365814079,1749933038566,-460.0,0.00021917,4]
[365814080,1749933038575,-460.0,0.00021917,4]
[365814081,1749933038585,-460.0,0.00021917,4]
[365814085,1749933038700,-2112.48,0.00021917,4]
[365814086,1749933038709,-1534.99,0.00021917,4]
[365814087,1749933038719,-190.35361079,0.00021917,2]
[365814088,1749933038729,-714.94,0.00021917,4]
[365814089,1749933038738,-460.0,0.00021917,4]
[365814090,1749933038748,-460.0,0.00021917,4]
[365814091,1749933038757,-460.0,0.00021917,4]
[365814092,1749933038768,-460.0,0.00021917,4]
[365814093,1749933038778,-500.0,0.00021973,2]
[365814094,1749933038788,-500.0,0.00021973,2]
[365814096,1749933038798,-500.38178413,0.00021973,2]
[365814097,1749933038808,-500.0,0.00021973,2]
[365814098,1749933038817,-500.0,0.00021973,2]
[365814099,1749933038829,-317.90403577,0.00021973,2]
[365814100,1749933038838,-256.30746912,0.00021973,2]
[365814101,1749933038847,-500.0,0.00021973,2]
[365814102,1749933038856,-170.0,0.00022,2]
[365814103,1749933038867,-47963.27148707,0.00022,2]
[365814104,1749933038877,-6541.33153089,0.00022,7]
[365814105,1749933038886,-161.27025685,0.00022,2]
[365814106,1749933038895,-1390.77124996,0.00022003,6]
[365814107,1749933038905,-464.19100025,0.00022091,2]
[365814108,1749933038917,-1390.77124996,0.00022141,6]
[365814109,1749933038927,-500.0,0.00022173,2]
[365814110,1749933038936,-500.0,0.00022173,2]
[365814111,1749933038946,-500.0,0.00022173,2]
[365814112,1749933038956,-502.45172187,0.00022173,2]
[365814113,1749933038966,-500.0,0.00022173,2]
[365814114,1749933038975,-500.0,0.00022173,2]
[365814115,1749933038984,-500.0,0.00022173,2]
[365814116,1749933038994,-500.0,0.00022173,2]
[365814117,1749933039004,-500.0,0.00022173,2]
[365814118,1749933039015,-154.04737681,0.00022173,2]
[365814119,1749933039024,-420.0,0.00022191,4]
[365814120,1749933039033,-460.0,0.00022191,4]
[365814121,1749933039043,-430.0,0.00022191,4]
[365814122,1749933039052,-178.97890036,0.00022191,4]
[365814123,1749933039062,-460.0,0.00022191,4]
[365814124,1749933039072,-561.83503069,0.00022191,4]
[365814125,1749933039082,-460.0,0.00022191,4]
[365814126,1749933039091,-390.0,0.00022191,4]
[365814128,1749933039101,-457.88930111,0.00022191,2]
[365814129,1749933039110,-460.0,0.00022191,4]
[365814130,1749933039119,-579.23705451,0.00022191,4]
[365814131,1749933039129,-390.0,0.00022191,4]
[365814132,1749933039138,-420.0,0.00022191,4]
[365814134,1749933039147,-350.0,0.00022191,4]
[365814135,1749933039156,-460.0,0.00022191,4]
[365814136,1749933039165,-282.24617099,0.00022191,4]
[365814137,1749933039175,-307.45812481,0.00022191,4]
[365814138,1749933039184,-521.95540922,0.00022191,4]
[365814139,1749933039194,-460.0,0.00022191,4]
[365814140,1749933039204,-410.0,0.00022191,4]
[365814141,1749933039213,-460.0,0.00022191,4]
[365814142,1749933039223,-380.0,0.00022191,4]
[365814143,1749933039232,-460.0,0.00022191,4]
[365814144,1749933039241,-440.0,0.00022191,4]
[365814145,1749933039251,-460.0,0.00022191,4]
[365814146,1749933039261,-460.0,0.00022191,4]
[365814147,1749933039270,-284.78387305,0.00022191,4]
[365814148,1749933039280,-430.0,0.00022191,4]
[365814149,1749933039289,-380.0,0.00022191,4]
[365814150,1749933039298,-460.0,0.00022191,4]
[365814151,1749933039307,-430.0,0.00022191,4]
[365814152,1749933039317,-430.0,0.00022191,4]
[365814153,1749933039326,-380.0,0.00022191,4]
[365814154,1749933039336,-460.0,0.00022191,4]
[365814155,1749933039345,-400.0,0.00022191,4]
[365814156,1749933039354,-332.19441621,0.00022191,4]
[365814157,1749933039364,-460.0,0.00022191,4]
[365814159,1749933039373,-430.0,0.00022191,4]
[365814160,1749933039383,-460.0,0.00022191,4]
[365814161,1749933039392,-310.0,0.00022191,4]
[365814163,1749933039402,-460.0,0.00022191,4]
[365814164,1749933039411,-460.0,0.00022191,4]
[365814165,1749933039420,-280.0,0.00022191,4]
[365814166,1749933039429,-460.0,0.00022191,4]
[365814167,1749933039438,-430.0,0.00022191,4]
[365814168,1749933039450,-420.0,0.00022191,4]
[365814169,1749933039460,-578.54649738,0.00022191,4]
[365814170,1749933039469,-301.68828176,0.00022191,4]
[365814171,1749933039479,-460.0,0.00022191,4]
[365814172,1749933039488,-400.0,0.00022191,4]
[365814173,1749933039497,-440.0,0.00022191,4]
[365814174,1749933039507,-460.0,0.00022191,4]
[365814175,1749933039518,-460.0,0.00022191,4]
[365814176,1749933039527,-518.80137931,0.00022191,4]
[365814177,1749933039542,-460.0,0.00022191,4]
[365814178,1749933039551,-460.0,0.00022191,4]
[365814179,1749933039561,-460.0,0.00022191,4]
[365814180,1749933039570,-460.0,0.00022191,4]
[365814181,1749933039580,-410.0,0.00022191,4]
[365814182,1749933039591,-460.0,0.00022191,4]
[365814183,1749933039600,-460.0,0.00022191,4]
[365814184,1749933039610,-460.0,0.00022191,4]
[365814185,1749933039619,-460.0,0.00022191,4]
[365814186,1749933039629,-453.11301354,0.00022191,4]
[365814187,1749933039638,-460.0,0.00022191,4]
[365814188,1749933039648,-224.77646069,0.00022191,4]
[365814189,1749933039657,-460.0,0.00022191,4]
[365814190,1749933039666,-460.0,0.00022191,4]
[365814191,1749933039675,-440.0,0.00022191,4]
[365814192,1749933039684,-440.0,0.00022191,4]
[365814193,1749933039693,-440.0,0.00022191,4]
[365814194,1749933039703,-460.0,0.00022191,4]
[365814195,1749933039712,-400.0,0.00022191,4]
[365814196,1749933039721,-460.0,0.00022191,4]
[365814197,1749933039730,-460.0,0.00022191,4]
[365814198,1749933039739,-440.0,0.00022191,4]
[365814199,1749933039749,-460.0,0.00022191,4]
[365814200,1749933039758,-460.0,0.00022191,4]
[365814201,1749933039769,-460.0,0.00022191,4]
[365814202,1749933039778,-460.0,0.00022191,4]
[365814203,1749933039788,-460.0,0.00022191,4]
[365814204,1749933039798,-460.0,0.00022191,4]
[365814205,1749933039807,-263.71492334,0.00022191,4]
[365814206,1749933039817,-265.65803458,0.00022191,4]
[365814207,1749933039827,-460.0,0.00022191,4]
[365814208,1749933039837,-460.0,0.00022191,4]
[365814209,1749933039846,-460.0,0.00022191,4]
[365814210,1749933039855,-460.0,0.00022191,4]
[365814211,1749933039864,-460.0,0.00022191,4]
[365814212,1749933039881,-460.0,0.00022191,4]
[365814213,1749933039894,-460.0,0.00022191,4]
[365814214,1749933039910,-400.0,0.00022191,4]
[365814215,1749933039923,-155.16389674,0.00022191,4]
[365814216,1749933039934,-420.0,0.00022191,4]
[365814217,1749933039947,-460.0,0.00022191,4]
[365814218,1749933039960,-213.18104678,0.00022191,4]
[365814219,1749933039973,-460.0,0.00022191,4]
[365814220,1749933039986,-460.0,0.00022191,4]
[365814221,1749933039999,-460.0,0.00022191,4]
[365814222,1749933040014,-460.0,0.00022191,4]
[365814225,1749933040029,-460.0,0.00022191,4]
[365814226,1749933040041,-460.0,0.00022191,4]
[365814227,1749933040054,-391.38330337,0.00022191,4]
[365814228,1749933040066,-460.0,0.00022191,4]
[365814229,1749933040078,-460.0,0.00022191,4]
[365814230,1749933040091,-460.0,0.00022191,4]
[365814231,1749933040104,-500.0,0.00022191,4]
[365814232,1749933040117,-400.0,0.00022191,4]
[365814233,1749933040128,-460.0,0.00022191,4]
[365814234,1749933040138,-460.0,0.00022191,4]
[365814235,1749933040150,-440.0,0.00022191,4]
[365814236,1749933040161,-1590.88,0.00022191,4]
[365814237,1749933040174,-460.0,0.00022191,4]
[365814239,1749933040187,-460.0,0.00022191,4]
[365814240,1749933040199,-357.92209317,0.00022191,4]
[365814241,1749933040213,-460.0,0.00022191,4]
[365814242,1749933040240,-460.0,0.00022191,4]
[365814243,1749933040259,-460.0,0.00022191,4]
[365814244,1749933040276,-460.0,0.00022191,4]
[365814245,1749933040287,-440.0,0.00022191,4]
[365814246,1749933040299,-393.65111529,0.00022191,4]
[365814247,1749933040311,-460.0,0.00022191,4]
[365814248,1749933040325,-460.0,0.00022191,4]
[365814249,1749933040341,-460.0,0.00022191,4]
[365814250,1749933040355,-460.0,0.00022191,4]
[365814251,1749933040367,-292.66794337,0.00022191,4]
[365814252,1749933040380,-460.0,0.00022191,4]
[365814253,1749933040393,-200.377292,0.00022191,4]
[365814254,1749933040409,-417.98450297,0.00022191,4]
[365814255,1749933040420,-460.0,0.00022191,4]
[365814256,1749933040431,-440.0,0.00022191,4]
[365814257,1749933040444,-460.0,0.00022191,4]
[365814258,1749933040456,-460.0,0.00022191,4]
[365814259,1749933040469,-460.0,0.00022191,4]
[365814260,1749933040483,-460.0,0.00022191,4]
[365814261,1749933040495,-460.0,0.00022191,4]
[365814262,1749933040508,-371.70334469,0.00022191,4]
[365814263,1749933040523,-460.0,0.00022191,4]
[365814264,1749933040536,-460.0,0.00022191,4]
[365814265,1749933040551,-460.0,0.00022191,4]
[365814266,1749933040564,-424.00667807,0.00022191,4]
[365814267,1749933040578,-460.0,0.00022191,4]
[365814268,1749933040590,-519.66764966,0.00022191,4]
[365814269,1749933040604,-460.0,0.00022191,4]
[365814270,1749933040616,-460.0,0.00022191,4]
[365814271,1749933040629,-460.0,0.00022191,4]
[365814272,1749933040641,-460.0,0.00022191,4]
[365814273,1749933040654,-344.24304109,0.00022191,4]
[365814274,1749933040666,-410.0,0.00022191,4]
[365814275,1749933040677,-460.0,0.00022191,4]
[365814276,1749933040689,-460.0,0.00022191,4]
[365814277,1749933040700,-460.0,0.00022191,4]
[365814278,1749933040712,-460.0,0.00022191,4]
[365814279,1749933040723,-476.19241809,0.00022191,4]
[365814280,1749933040735,-460.0,0.00022191,4]
[365814285,1749933040748,-460.0,0.00022191,4]
[365814288,1749933040760,-460.0,0.00022191,4]
[365814291,1749933040773,-430.0,0.00022191,4]
[365814293,1749933040784,-483.07908642,0.00022191,4]
[365814296,1749933040795,-460.0,0.00022191,4]
[365814297,1749933040810,-460.0,0.00022191,4]
[365814298,1749933040824,-460.0,0.00022191,4]
[365814299,1749933040839,-342.55604568,0.00022191,4]
[365814300,1749933041047,-253.90616555,0.00022191,4]
[365814301,1749933041058,-280.04383445,0.00022191,4]
[365814304,1749933041648,-268.8338297,0.00021153,2]
[365814305,1749933041657,-460.0,0.00021917,4]
[365814306,1749933041667,-2296.61,0.00021917,4]
[365814307,1749933041676,-179.95616555,0.00022191,4]
[365814308,1749933041686,-460.0,0.00022191,4]
[365814309,1749933041696,-916.82,0.00022191,4]
[365814310,1749933041706,-460.0,0.00022191,4]
[365814311,1749933041715,-3122.03,0.00022191,4]
[365814312,1749933041727,-460.0,0.00022191,4]
[365814313,1749933041736,-460.0,0.00022191,4]
[365814314,1749933041745,-393.58500136,0.00022191,4]
[365814315,1749933041755,-454.5057878,0.00022191,4]
[365814316,1749933041764,-516.96,0.00022191,4]
[365814317,1749933041773,-460.0,0.00022191,4]
[365814318,1749933041782,-460.0,0.00022191,4]
[365814319,1749933041794,-1202.49,0.00022191,4]
[365814320,1749933041803,-188.07994512,0.00022191,4]
[365814321,1749933041812,-460.0,0.00022191,4]
[365814322,1749933041822,-460.0,0.00022191,4]
[365814323,1749933041836,-460.0,0.00022191,4]
[365814325,1749933041845,-360.0,0.00022191,4]
[365814327,1749933041854,-289.922574,0.00022191,4]
[365814329,1749933041863,-460.0,0.00022191,4]
[365814330,1749933041873,-460.0,0.00022191,4]
[365814332,1749933041883,-400.0,0.00022191,4]
[365814334,1749933041892,-500.0,0.00022191,4]
[365814336,1749933041901,-460.0,0.00022191,4]
[365814337,1749933041912,-460.0,0.00022191,4]
[365814338,1749933041922,-274.08485364,0.00022191,4]
[365814339,1749933041931,-850.32,0.00022191,4]
[365814340,1749933041940,-460.0,0.00022191,4]
[365814341,1749933041949,-460.0,0.00022191,4]
[365814342,1749933041958,-460.0,0.00022191,4]
[365814343,1749933041968,-460.0,0.00022191,4]
[365814344,1749933041978,-250.0,0.00022191,4]
[365814345,1749933041988,-410.0,0.00022191,4]
[365814346,1749933041999,-460.0,0.00022191,4]
[365814347,1749933042009,-460.0,0.00022191,4]
[365814348,1749933042019,-690.01,0.00022191,4]
[365814349,1749933042028,-460.0,0.00022191,4]
[365814350,1749933042037,-460.0,0.00022191,4]
[365814351,1749933042046,-460.0,0.00022191,4]
[365814352,1749933042056,-460.0,0.00022191,4]
[365814353,1749933042074,-1066.53,0.00022191,4]
[365814354,1749933042086,-460.0,0.00022191,4]
[365814355,1749933042095,-460.0,0.00022191,4]
[365814356,1749933042105,-460.0,0.00022191,4]
[365814357,1749933042115,-184.01595344,0.00022191,4]
[365814358,1749933042125,-2768.92,0.00022191,4]
[365814359,1749933042134,-440.0,0.00022191,4]
[365814360,1749933042144,-440.0,0.00022191,4]
[365814361,1749933042153,-261.67410705,0.00022191,4]
[365814362,1749933042163,-430.0,0.00022191,4]
[365814363,1749933042172,-460.0,0.00022191,4]
[365814364,1749933042182,-460.0,0.00022191,4]
[365814365,1749933042193,-460.0,0.00022191,4]
[365814366,1749933042203,-1078.94,0.00022191,4]
[365814367,1749933042212,-460.0,0.00022191,4]
[365814368,1749933042222,-460.0,0.00022191,4]
[365814369,1749933042231,-460.0,0.00022191,4]
[365814370,1749933042241,-460.0,0.00022191,4]
[365814371,1749933042250,-460.0,0.00022191,4]
[365814372,1749933042260,-460.0,0.00022191,4]
[365814373,1749933042273,-460.0,0.00022191,4]
[365814374,1749933042283,-460.0,0.00022191,4]
[365814375,1749933042292,-553.87,0.00022191,4]
[365814376,1749933042304,-460.0,0.00022191,4]
[365814377,1749933042314,-460.0,0.00022191,4]
[365814378,1749933042324,-430.0,0.00022191,4]
[365814379,1749933042334,-729.35,0.00022191,4]
[365814380,1749933042344,-460.0,0.00022191,4]
[365814381,1749933042354,-2881.89,0.00022191,4]
[365814382,1749933042364,-519.99,0.00022191,4]
[365814383,1749933042373,-371.18444022,0.00022191,4]
[365814384,1749933042383,-328.24031496,0.00022191,4]
[365814385,1749933042394,-460.0,0.00022191,4]
[365814386,1749933042404,-460.0,0.00022191,4]
[365814387,1749933042414,-457.01837885,0.00022191,4]
[365814388,1749933042424,-460.0,0.00022191,4]
[365814389,1749933042434,-460.0,0.00022191,4]
[365814390,1749933042444,-460.0,0.00022191,4]
[365814391,1749933042454,-681.4,0.00022191,4]
[365814392,1749933042464,-400.0,0.00022191,4]
[365814393,1749933042474,-460.0,0.00022191,4]
[365814394,1749933042484,-460.0,0.00022191,4]
[365814395,1749933042494,-460.0,0.00022191,4]
[365814396,1749933042504,-460.0,0.00022191,4]
[365814397,1749933042514,-1270.48,0.00022191,4]
[365814398,1749933042524,-1055.51,0.00022191,4]
[365814399,1749933042534,-484.48,0.00022191,4]
[365814400,1749933042544,-440.0,0.00022191,4]
[365814401,1749933042554,-460.0,0.00022191,4]
[365814402,1749933042564,-1350.21,0.00022191,4]
[365814403,1749933042574,-340.0,0.00022191,4]
[365814404,1749933042584,-496.27,0.00022191,4]
[365814405,1749933042594,-460.0,0.00022191,4]
[365814406,1749933042604,-460.0,0.00022191,4]
[365814407,1749933042614,-535.84164683,0.00022191,4]
[365814408,1749933042623,-430.0,0.00022191,4]
[365814409,1749933042633,-460.0,0.00022191,4]
[365814410,1749933042642,-438.12153307,0.00022191,4]
[365814411,1749933042652,-587.88416507,0.00022191,4]
[365814412,1749933042662,-3073.64,0.00022191,4]
[365814413,1749933042671,-402.29371893,0.00022191,4]
[365814414,1749933042681,-460.0,0.00022191,4]
[365814415,1749933042690,-460.0,0.00022191,4]
[365814416,1749933042700,-440.0,0.00022191,4]
[365814417,1749933042710,-540.12,0.00022191,2]
[365814418,1749933042719,-3018.1,0.00022191,4]
[365814419,1749933042729,-460.0,0.00022191,4]
[365814420,1749933042738,-460.0,0.00022191,4]
[365814421,1749933042748,-460.0,0.00022191,4]
[365814422,1749933042757,-460.0,0.00022191,4]
[365814423,1749933042767,-400.0,0.00022191,4]
[365814424,1749933042777,-460.0,0.00022191,4]
[365814425,1749933042786,-3310.65,0.00022191,4]
[365814426,1749933042795,-460.0,0.00022191,4]
[365814427,1749933042805,-460.0,0.00022191,4]
[365814428,1749933042815,-440.0,0.00022191,4]
[365814429,1749933042824,-460.0,0.00022191,4]
[365814430,1749933042837,-460.0,0.00022191,4]
[365814431,1749933042847,-460.0,0.00022191,4]
[365814432,1749933042856,-460.0,0.00022191,4]
[365814433,1749933042866,-643.5,0.00022191,4]
[365814434,1749933042876,-420.0,0.00022191,4]
[365814435,1749933042885,-460.0,0.00022191,4]
[365814436,1749933042895,-724.35,0.00022191,4]
[365814437,1749933042906,-1522.71,0.00022191,4]
[365814438,1749933042916,-410.0,0.00022191,4]
[365814439,1749933042926,-460.0,0.00022191,4]
[365814440,1749933042936,-460.0,0.00022191,4]
[365814441,1749933042945,-460.0,0.00022191,4]
[365814442,1749933042955,-460.0,0.00022191,4]
[365814443,1749933042964,-460.0,0.00022191,4]
[365814444,1749933042973,-460.0,0.00022191,4]
[365814445,1749933042983,-433.0051875,0.00022191,4]
[365814446,1749933042992,-256.38323503,0.00022191,4]
[365814447,1749933043002,-410.28075095,0.00022191,4]
[365814448,1749933043011,-460.0,0.00022191,4]
[365814449,1749933043024,-460.0,0.00022191,4]
[365814450,1749933043034,-1129.33,0.00022191,4]
[365814451,1749933043043,-460.0,0.00022191,4]
[365814452,1749933043053,-398.75328855,0.00022191,4]
[365814453,1749933043062,-460.0,0.00022191,4]
[365814454,1749933043072,-1881.01,0.00022191,4]
[365814455,1749933043083,-460.0,0.00022191,4]
[365814456,1749933043092,-440.0,0.00022191,4]
[365814457,1749933043102,-460.0,0.00022191,4]
[365814458,1749933043112,-460.0,0.00022191,4]
[365814459,1749933043121,-2112.48,0.00022191,4]
[365814460,1749933043131,-1534.99,0.00022191,4]
[365814461,1749933043141,-714.94,0.00022191,4]
[365814465,1749933043154,-460.0,0.00022191,4]
[365814468,1749933043163,-460.0,0.00022191,4]
[365814470,1749933043173,-460.0,0.00022191,4]
[365814472,1749933043183,-372.1124176,0.00022191,4]
[365814474,1749933043192,-380.0,0.00022191,4]